[Event "2nd Namma Bengaluru Open-A 2025"]
[Site "Bengaluru"]
[Date "2025.04.16"]
[Round "8.28"]
[White "Shahil Dey"]
[Black "Singh, S. Vikramjit"]
[Result "1-0"]
[Annotator "RC"]
[ECO "C24"]
[WhiteElo "2360"]
[BlackElo "2165"]
[PlyCount "139"]
[EventDate "2025.04.10"]
[EventType "swiss"]
[EventCountry "IND"]
[SourceTitle "playchess.com"]
[Source "ChessBase"]
[SourceQuality "1"]
[TimeControl "5400+30"]

1. e4 {[%emt 0:00:02]} e5 {[%emt 0:00:27]} 2. Bc4 {[%emt 0:00:16]} Nf6 {[%emt 0:01:22]} 3. d3 {[%emt 0:00:04]} c6 {[%emt 0:03:25]} 4. Nf3 {[%emt 0:00:03]} d5 {[%emt 0:22:00]} 5. Bb3 {[%emt 0:00:18]} Nbd7 {[%emt 0:09:11]} 6. O-O {[%emt 0:03:54]} Bd6 {[%emt 0:04:53]} 7. exd5 {[%emt 0:01:14]} Nxd5 {[%emt 0:00:48]} 8. Bg5 {[%emt 0:15:14]} Qc7 {[%emt 0:04:00]} 9. Nbd2 {[%emt 0:09:15]} O-O {[%emt 0:12:44]} 10. Ne4 {[%emt 0:01:57]} Nc5 {[%emt 0:01:06]} 11. Nxc5 {[%emt 0:16:51]} Bxc5 {[%emt 0:00:44]} 12. h3 {[%emt 0:00:33]} Re8 {[%emt 0:05:12]} 13. Qd2 {[%emt 0:03:24]} Bf5 {[%emt 0:06:59]} 14. Rfe1 {[%emt 0:03:13]} h6 {[%emt 0:05:51]} 15. Bh4 {[%emt 0:07:18]} e4 {[%emt 0:00:30]} 16. dxe4 {[%emt 0:01:23]} Bxe4 {[%emt 0:00:11]} 17. Nd4 {[%emt 0:14:52]} Qf4 {[%emt 0:06:20]} 18. Qxf4 {[%emt 0:00:51]} Nxf4 {[%emt 0:00:10]} 19. Ne6 {[%emt 0:00:11]} Nxe6 {[%emt 0:05:03]} 20. Rxe4 {[%emt 0:00:05]} Nd4 {[%emt 0:00:08]} 21. Rae1 {[%emt 0:03:52]} Rxe4 {[%emt 0:01:59]} 22. Rxe4 {[%emt 0:00:03]} Nxb3 {[%emt 0:01:07]} 23. axb3 {[%emt 0:00:04]} f6 {[%emt 0:02:49]} 24. Kf1 {[%emt 0:02:36]} Rd8 {[%emt 0:01:05]} 25. Ke2 {[%emt 0:00:05]} Rd4 {[%emt 0:01:27]} 26. Rxd4 {[%emt 0:05:33]} Bxd4 {[%emt 0:00:09]} 27. c3 {[%emt 0:00:03]} Bb6 {[%emt 0:00:42]} 28. g4 {[%emt 0:00:59]} Kf7 {[%emt 0:01:01]} 29. f4 {[%emt 0:00:45]} g6 {[%emt 0:01:29]} 30. f5 {[%emt 0:00:21]} Bc7 {[%emt 0:00:26]} 31. Bf2 {[%emt 0:00:19]} a6 {[%emt 0:00:18]} 32. Kf3 {[%emt 0:02:25]} gxf5 {[%emt 0:00:44]} 33. gxf5 {[%emt 0:00:04]} h5 {[%emt 0:00:11]} 34. Ke4 {[%emt 0:02:07]} Bd6 {[%emt 0:00:16]} 35. Bb6 {[%emt 0:00:36]} Be5 {[%emt 0:00:35]} 36. b4 {[%emt 0:01:01]} Bg3 {[%emt 0:00:33]} 37. Kd3 {[%emt 0:01:20]} Bd6 {[%emt 0:00:22]} 38. Kc4 {[%emt 0:01:06]} Ke8 {[%emt 0:00:49]} 39. Kd4 {[%emt 0:00:40]} Bf4 {[%emt 0:00:24]} 40. Ke4 {[%emt 0:00:22]} Bg3 {[%emt 0:00:32]} 41. Bd4 {[%emt 0:01:36]} Ke7 {[%emt 0:00:14]} 42. Bc5+ {[%emt 0:00:29]} Ke8 {[%emt 0:00:20]} 43. b3 {[%emt 0:00:31]} Bc7 {[%emt 0:00:46]} 44. Be3 {[%emt 0:00:35]} b5 {[%emt 0:01:05]} 45. Bf4 {[%emt 0:01:11]} Bb6 {[%emt 0:00:16]} 46. Kf3 {[%emt 0:00:21]} Kf7 {[%emt 0:01:41]} 47. Kg3 {[%emt 0:00:04]} Bg1 {[%emt 0:00:30]} 48. Bd2 {[%emt 0:00:52]} Bb6 {[%emt 0:00:58]} 49. Kh4 {[%emt 0:00:04]} Bc7 {[%emt 0:00:30]} 50. Kxh5 {[%emt 0:00:06]} Be5 {[%emt 0:00:31]} 51. Kg4 {[%emt 0:00:17]} Kg7 {[%emt 0:00:21]} 52. h4 {[%emt 0:00:20]} Kf7 {[%emt 0:00:09]} 53. h5 {[%emt 0:00:15]} Kg7 {[%emt 0:00:19]} 54. Kf3 {[%emt 0:03:14]} Kf7 {[%emt 0:00:13]} 55. Ke4 {[%emt 0:00:21]} Kg7 {[%emt 0:00:28]} 56. Kd3 {[%emt 0:00:11]} Kf7 {[%emt 0:00:20]} 57. Bh6 {[%emt 0:00:06]} Bc7 {[%emt 0:00:26]} 58. Be3 {[%emt 0:00:11]} Bd6 {[%emt 0:00:18]} 59. Kd4 {[%emt 0:00:48]} Bf8 {[%emt 0:00:34]} 60. Bf4 {[%emt 0:00:50]} Be7 {[%emt 0:00:12]} 61. Ke4 {[%emt 0:00:38]} Bf8 {[%emt 0:00:12]} 62. Kf3 {[%emt 0:00:26]} Be7 {[%emt 0:00:12]} 63. Kg4 {[%emt 0:00:51]} Kg7 {[%emt 0:00:15]} 64. Kh4 {[%emt 0:00:36]} Kh7 {[%emt 0:01:14]} 65. h6 {[%emt 0:00:18]} Bf8 {[%emt 0:01:34]} 66. Kh5 {[%emt 0:00:05]} Be7 {[%emt 0:00:05]} 67. Bc7 {[%emt 0:00:06]} Bf8 {[%emt 0:01:43]} 68. Bd8 {[%emt 0:00:05]} Bxh6 {[%emt 0:00:12]} 69. Bxf6 {[%emt 0:00:02]} Be3 {[%emt 0:00:44]} 70. Be5 {[%emt 0:00:27]} 1-0

[Event "2nd Namma Bengaluru Open-A 2025"]
[Site "Bengaluru"]
[Date "2025.04.16"]
[Round "8.29"]
[White "Tologon tegin, Semetei"]
[Black "Sherla Prathamesh"]
[Result "0-1"]
[Annotator "RC"]
[ECO "A40"]
[WhiteElo "2358"]
[BlackElo "2157"]
[PlyCount "114"]
[EventDate "2025.04.10"]
[EventType "swiss"]
[EventCountry "IND"]
[SourceTitle "playchess.com"]
[Source "ChessBase"]
[SourceQuality "1"]
[TimeControl "5400+30"]

1. c4 {[%emt 0:03:36]} e6 {[%emt 0:00:06]} 2. Nc3 {[%emt 0:00:08]} f5 {[%emt 0:00:05]} 3. a3 {[%emt 0:00:09]} Nf6 {[%emt 0:00:29]} 4. d4 {[%emt 0:00:11]} b6 {[%emt 0:04:38]} 5. Nf3 {[%emt 0:07:41]} Bb7 {[%emt 0:00:06]} 6. d5 {[%emt 0:00:03]} Bd6 {[%emt 0:10:40]} 7. g3 {[%emt 0:00:39]} c6 {[%emt 0:04:59]} 8. Bg5 {[%emt 0:02:55]} O-O {[%emt 0:09:22]} 9. Bg2 {[%emt 0:03:13]} exd5 {[%emt 0:06:44]} 10. cxd5 {[%emt 0:03:54]} h6 {[%emt 0:00:27]} 11. dxc6 {[%emt 0:01:00]} dxc6 {[%emt 0:00:06]} 12. Qb3+ {[%emt 0:00:06]} Kh7 {[%emt 0:01:00]} 13. O-O-O {[%emt 0:02:36]} Qc7 {[%emt 0:04:46]} 14. h4 {[%emt 0:06:08]} Na6 {[%emt 0:03:30]} 15. Qe6 {[%emt 0:03:06]} Nd5 {[%emt 0:00:05]} 16. h5 {[%emt 0:31:04]} Rae8 {[%emt 0:14:44]} 17. Qg6+ {[%emt 0:00:32]} Kh8 {[%emt 0:37:13]} 18. Bxh6 {[%emt 0:17:15]} gxh6 {[%emt 0:00:00]} 19. Qxh6+ {[%emt 0:01:10]} Qh7 {[%emt 0:00:00]} 20. Qxd6 {[%emt 0:00:17]} Rf6 {[%emt 0:00:00]} 21. Rxd5 {[%emt 0:00:18]} Qh6+ {[%emt 0:00:00]} 22. Qf4 {[%emt 0:00:01]} Qxf4+ {[%emt 0:00:00]} 23. gxf4 {[%emt 0:00:03]} cxd5 {[%emt 0:00:00]} 24. Ne5 {[%emt 0:00:32]} Rd8 {[%emt 0:00:00]} 25. Nb5 {[%emt 0:00:29]} Nc5 {[%emt 0:00:00]} 26. Nd4 {[%emt 0:01:47]} Ne4 {[%emt 0:00:00]} 27. f3 {[%emt 0:00:10]} Rc8+ {[%emt 0:00:00]} 28. Kb1 {[%emt 0:00:06]} Nd2+ {[%emt 0:00:00]} 29. Ka2 {[%emt 0:00:04]} Nc4 {[%emt 0:00:00]} 30. Bh3 {[%emt 0:00:07]} Ne3 {[%emt 0:00:00]} 31. Rg1 {[%emt 0:00:22]} Rc7 {[%emt 0:01:26]} 32. Rg5 {[%emt 0:00:26]} Bc8 {[%emt 0:00:10]} 33. Kb3 {[%emt 0:01:54]} Kh7 {[%emt 0:01:12]} 34. Nb5 {[%emt 0:02:11]} Rc2 {[%emt 0:03:27]} 35. Nxa7 {[%emt 0:05:17]} Be6 {[%emt 0:00:53]} 36. Nac6 {[%emt 0:00:45]} d4+ {[%emt 0:00:41]} 37. Ka4 {[%emt 0:00:00]} Rxc6 {[%emt 0:01:05]} 38. Nxc6 {[%emt 0:00:18]} Bd7 {[%emt 0:00:01]} 39. Rg6 {[%emt 0:08:19]} Bxc6+ {[%emt 0:00:11]} 40. Kb4 {[%emt 0:00:03]} Rxg6 {[%emt 0:00:35]} 41. hxg6+ {[%emt 0:00:03]} Kxg6 {[%emt 0:00:03]} 42. a4 {[%emt 0:00:04]} Nd5+ {[%emt 0:01:26]} 43. Kc4 {[%emt 0:00:01]} Nxf4 {[%emt 0:00:08]} 44. Bf1 {[%emt 0:00:06]} Ne6 {[%emt 0:00:24]} 45. Kb4 {[%emt 0:00:03]} Kg5 {[%emt 0:01:03]} 46. a5 {[%emt 0:00:00]} bxa5+ {[%emt 0:00:34]} 47. Kxa5 {[%emt 0:00:01]} Kf4 {[%emt 0:00:10]} 48. b4 {[%emt 0:00:05]} Kg3 {[%emt 0:01:13]} 49. b5 {[%emt 0:00:09]} Ba8 {[%emt 0:00:34]} 50. Kb4 {[%emt 0:00:14]} Ng5 {[%emt 0:00:37]} 51. Kc4 {[%emt 0:00:14]} Ne6 {[%emt 0:00:31]} 52. Kd3 {[%emt 0:01:55]} Kf2 {[%emt 0:00:26]} 53. Bh3 {[%emt 0:00:04]} Nf4+ {[%emt 0:00:04]} 54. Kxd4 {[%emt 0:00:01]} Nxh3 {[%emt 0:00:06]} 55. e4 {[%emt 0:00:03]} f4 {[%emt 0:00:18]} 56. b6 {[%emt 0:01:09]} Kxf3 {[%emt 0:00:08]} 57. e5 {[%emt 0:00:03]} Ng5 {[%emt 0:00:05]} 0-1

[Event "2nd Namma Bengaluru Open-A 2025"]
[Site "Bengaluru"]
[Date "2025.04.16"]
[Round "8.30"]
[White "Roy Chowdhury, Saptarshi"]
[Black "John Veny Akkarakaran"]
[Result "1/2-1/2"]
[Annotator "RC"]
[ECO "D05"]
[WhiteElo "2224"]
[BlackElo "2350"]
[PlyCount "77"]
[EventDate "2025.04.10"]
[EventType "swiss"]
[EventCountry "IND"]
[SourceTitle "playchess.com"]
[Source "ChessBase"]
[SourceQuality "1"]
[TimeControl "5400+30"]

1. Nf3 {[%emt 0:00:03]} Nf6 {[%emt 0:04:04]} 2. d4 {[%emt 0:00:08]} e6 {[%emt 0:00:13]} 3. e3 {[%emt 0:00:04]} b6 {[%emt 0:00:20]} 4. Bd3 {[%emt 0:00:06]} Bb7 {[%emt 0:00:09]} 5. O-O {[%emt 0:00:25]} d5 {[%emt 0:02:21]} 6. b3 {[%emt 0:00:05]} Bd6 {[%emt 0:00:21]} 7. Bb2 {[%emt 0:00:05]} O-O {[%emt 0:00:19]} 8. Ne5 {[%emt 0:03:02]} c5 {[%emt 0:01:29]} 9. Nd2 {[%emt 0:04:07]} Nc6 {[%emt 0:00:59]} 10. a3 {[%emt 0:05:46]} Rc8 {[%emt 0:03:08]} 11. Qe2 {[%emt 0:08:01]} Ne7 {[%emt 0:03:07]} 12. dxc5 {[%emt 0:14:38]} Bxe5 {[%emt 0:19:26]} 13. Bxe5 {[%emt 0:00:56]} Nd7 {[%emt 0:00:18]} 14. Bb2 {[%emt 0:05:47]} Nxc5 {[%emt 0:04:04]} 15. f4 {[%emt 0:04:27]} Nxd3 {[%emt 0:06:28]} 16. Qxd3 {[%emt 0:00:25]} Nf5 {[%emt 0:02:41]} 17. Nf3 {[%emt 0:01:19]} Re8 {[%emt 0:18:45]} 18. Rad1 {[%emt 0:15:56]} h5 {[%emt 0:11:15]} 19. Nd4 {[%emt 0:09:48]} Qf6 {[%emt 0:08:11]} 20. Rf2 {[%emt 0:04:09]} Nxd4 {[%emt 0:03:48]} 21. Bxd4 {[%emt 0:00:08]} Qf5 {[%emt 0:00:14]} 22. Qxf5 {[%emt 0:01:26]} exf5 {[%emt 0:00:09]} 23. Kf1 {[%emt 0:00:07]} f6 {[%emt 0:00:36]} 24. Ke1 {[%emt 0:00:15]} Kf7 {[%emt 0:00:08]} 25. Kd2 {[%emt 0:00:21]} Re6 {[%emt 0:01:23]} 26. a4 {[%emt 0:00:36]} Rec6 {[%emt 0:01:05]} 27. c3 {[%emt 0:00:32]} a6 {[%emt 0:01:42]} 28. Ra1 {[%emt 0:00:27]} Rh8 {[%emt 0:00:30]} 29. Rff1 {[%emt 0:02:33]} Bc8 {[%emt 0:01:42]} 30. Rfb1 {[%emt 0:00:31]} Be6 {[%emt 0:00:31]} 31. Rg1 {[%emt 0:04:22]} Rd6 {[%emt 0:00:20]} 32. Ke2 {[%emt 0:00:51]} Re8 {[%emt 0:00:25]} 33. Kd2 {[%emt 0:00:18]} Bd7 {[%emt 0:00:28]} 34. Kc2 {[%emt 0:02:02]} g5 {[%emt 0:00:46]} 35. g3 {[%emt 0:00:48]} Kg6 {[%emt 0:00:26]} 36. Rg2 {[%emt 0:01:37]} Rc6 {[%emt 0:01:08]} 37. Kd2 {[%emt 0:00:14]} Rb8 {[%emt 0:00:11]} 38. b4 {[%emt 0:01:41]} Re6 {[%emt 0:00:29]} 39. Rf2 {[%emt 0:00:27]} 1/2-1/2